fUSD/lending_fUSD_20260519
["ID","MTS","AMOUNT","RATE_DAILY","PERIOD"]
[422597043,1779136244000,-156.22142969,0.00029182,2]
[422597105,1779136244000,-159.0,0.00030199,30]
[422597070,1779136244000,-150.0,0.00029863,2]
[422597072,1779136244000,-27685.94962774,0.0003,7]
[422597102,1779136244000,-160.0,0.00030199,30]
[422597076,1779136244000,-200.0,0.0003,2]
[422597073,1779136244000,-200.0,0.0003,2]
[422597041,1779136244000,-168.15013474,0.00029182,7]
[422597046,1779136244000,-978.85,0.00029201,2]
[422597047,1779136244000,-192.48,0.00029201,2]
[422597040,1779136244000,-181.11,0.00029169,30]
[422597045,1779136244000,-242.84,0.00029201,2]
[422597049,1779136244000,-301.4,0.00029201,2]
[422597050,1779136244000,-1143.95,0.00029201,2]
[422597048,1779136244000,-288.16,0.00029201,2]
[422597052,1779136244000,-232.28,0.00029232,7]
[422597051,1779136244000,-181.11,0.00029201,2]
[422597054,1779136244000,-978.86,0.00029232,7]
[422597063,1779136244000,-203.75847026,0.0002953,20]
[422597064,1779136244000,-150.0,0.00029534,2]
[422597055,1779136244000,-192.66,0.00029232,7]
[422597044,1779136244000,-232.16,0.00029201,2]
[422597053,1779136244000,-242.89,0.00029232,7]
[422597062,1779136244000,-5950.58,0.000295,14]
[422597077,1779136244000,-265.42193582,0.0003,2]
[422597066,1779136244000,-240.61,0.000296,7]
[422597069,1779136244000,-150.0,0.0002984,2]
[422597067,1779136244000,-2313.0,0.00029651,3]
[422597068,1779136244000,-502.0,0.00029814,4]
[422597071,1779136244000,-1586.0,0.0002999,3]
[422597059,1779136244000,-181.3,0.00029232,7]
[422597061,1779136244000,-200.0,0.0002933,20]
[422597057,1779136244000,-301.57,0.00029232,7]
[422597058,1779136244000,-1144.11,0.00029232,7]
[422597060,1779136244000,-1586.0,0.00029274,3]
[422597065,1779136244000,-324.04,0.000296,7]
[422597056,1779136244000,-288.29,0.00029232,7]
[422597143,1779136245000,-200.0,0.00031096,2]
[422597151,1779136245000,-161.0,0.00031199,30]
[422597152,1779136245000,-160.0,0.00031199,30]
[422597150,1779136245000,-502.0,0.00031152,6]
[422597147,1779136245000,-155.0,0.00031135,30]
[422597142,1779136245000,-1000.0,0.00031093,18]
[422597141,1779136245000,-150.0,0.00031011,2]
[422597140,1779136245000,-5000.0,0.0003101,2]
[422597138,1779136245000,-5000.0,0.0003101,2]
[422597139,1779136245000,-5000.0,0.0003101,2]
[422597148,1779136245000,-229.0,0.00031135,30]
[422597145,1779136245000,-324.04,0.000311,7]
[422597144,1779136245000,-269.0,0.00031096,2]
[422597155,1779136245000,-159.0,0.00031199,30]
[422597158,1779136245000,-5530.0,0.000312,5]
[422597154,1779136245000,-157.0,0.00031199,30]
[422597149,1779136245000,-157.0,0.00031135,30]
[422597146,1779136245000,-153.0,0.00031129,30]
[422597156,1779136245000,-331.703333,0.000312,7]
[422597157,1779136245000,-331.703333,0.000312,7]
[422597162,1779136245000,-2000.0,0.0003134,2]
[422597159,1779136245000,-152.23356144,0.00031233,2]
[422597161,1779136245000,-1472.7157,0.0003134,2]
[422597165,1779136245000,-826.20555571,0.00031448,7]
[422597163,1779136245000,-357.15712556,0.00031448,2]
[422597171,1779136245000,-414.74990944,0.00031448,7]
[422597135,1779136245000,-2313.0,0.0003063,3]
[422597166,1779136245000,-468.66428907,0.00031448,2]
[422597153,1779136245000,-175.0,0.00031199,30]
[422597134,1779136245000,-4307.03729353,0.00030629,2]
[422597122,1779136245000,-502.0,0.00030483,5]
[422597136,1779136245000,-1586.0,0.0003063,3]
[422597160,1779136245000,-1586.0,0.00031309,3]
[422597114,1779136245000,-1000.0,0.0003027,2]
[422597107,1779136245000,-402.01,0.000302,2]
[422597117,1779136245000,-1000.0,0.00030272,2]
[422597111,1779136245000,-1000.0,0.0003027,2]
[422597106,1779136245000,-2985.33,0.000302,2]
[422597116,1779136245000,-1000.0,0.00030272,2]
[422597108,1779136245000,-150.0,0.00030205,2]
[422597112,1779136245000,-1000.0,0.0003027,2]
[422597118,1779136245000,-1000.0,0.00030272,2]
[422597109,1779136245000,-233.5,0.00030239,2]
[422597110,1779136245000,-1000.0,0.0003027,2]
[422597115,1779136245000,-1000.0,0.00030272,2]
[422597137,1779136245000,-150.0,0.0003092,30]
[422597113,1779136245000,-1000.0,0.0003027,2]
[422597121,1779136245000,-200.82710935,0.0003032,15]
[422597123,1779136245000,-5950.58,0.000305,14]
[422597127,1779136245000,-312.44285938,0.00030542,2]
[422597128,1779136245000,-207.37495472,0.00030542,7]
[422597126,1779136245000,-550.8037038,0.00030542,7]
[422597129,1779136245000,-162.5161166,0.00030542,7]
[422597131,1779136245000,-240.61,0.000306,7]
[422597124,1779136245000,-178.57856278,0.00030542,2]
[422597120,1779136245000,-1586.0,0.0003031,3]
[422597130,1779136245000,-192.67820274,0.00030542,7]
[422597125,1779136245000,-336.30026948,0.00030542,7]
[422597132,1779136245000,-16598.11940283,0.00030629,2]
[422597133,1779136245000,-250.83464447,0.00030629,6]
[422597119,1779136245000,-1000.0,0.00030272,2]
[422597164,1779136245000,-504.45040423,0.00031448,7]
[422597172,1779136245000,-325.0322332,0.00031448,7]
[422597230,1779136245000,-500.0,0.00032877,2]
[422597203,1779136245000,-421.3647822,0.00032052,7]
[422597200,1779136245000,-563.17266573,0.00032052,2]
[422597204,1779136245000,-622.12486416,0.00032052,7]
[422597202,1779136245000,-343.14903541,0.00032052,7]
[422597208,1779136245000,-200.0,0.00032055,2]
[422597212,1779136245000,-160.0,0.00032199,30]
[422597205,1779136245000,-487.5483498,0.00032052,7]
[422597213,1779136245000,-175.0,0.00032199,30]
[422597206,1779136245000,-496.47373259,0.00032052,2]
[422597207,1779136245000,-578.03460822,0.00032052,7]
[422597209,1779136245000,-153.0,0.00032129,30]
[422597214,1779136245000,-233.5,0.0003221,5]
[422597216,1779136245000,-2313.0,0.00032345,11]
[422597223,1779136245000,-1377.00925951,0.00032656,7]
[422597219,1779136245000,-150.0,0.00032562,2]
[422597221,1779136245000,-240.61,0.000326,7]
[422597218,1779136245000,-292.5,0.00032548,2]
[422597220,1779136245000,-5950.58,0.000326,14]
[422597224,1779136245000,-781.10714845,0.00032656,2]
[422597222,1779136245000,-840.75067371,0.00032656,7]
[422597225,1779136245000,-1586.0,0.00032684,11]
[422597226,1779136245000,-1002.41,0.00032877,2]
[422597215,1779136245000,-324.04,0.000323,7]
[422597229,1779136245000,-1000.0,0.00032877,30]
[422597228,1779136245000,-1000.0,0.00032877,30]
[422597227,1779136245000,-1700.41,0.00032877,30]
[422597232,1779136245000,-500.0,0.00032877,2]
[422597170,1779136245000,-171.57451771,0.00031448,7]
[422597231,1779136245000,-500.0,0.00032877,2]
[422597211,1779136245000,-157.0,0.00032135,30]
[422597201,1779136245000,-547.26558876,0.00032052,7]
[422597217,1779136245000,-502.0,0.0003249,7]
[422597195,1779136245000,-388.6539379,0.00032052,7]
[422597169,1779136245000,-273.63279438,0.00031448,7]
[422597210,1779136245000,-229.0,0.00032135,30]
[422597168,1779136245000,-281.58633286,0.00031448,2]
[422597174,1779136245000,-385.35640548,0.00031448,7]
[422597184,1779136245000,-34595.14827307,0.00031926,7]
[422597182,1779136245000,-5950.58,0.000318,14]
[422597183,1779136245000,-502.0,0.00031821,7]
[422597173,1779136245000,-248.2368663,0.00031448,2]
[422597185,1779136245000,-164.99548644,0.00032,120]
[422597177,1779136245000,-1000.0,0.00031562,92]
[422597180,1779136245000,-163.0,0.00031705,3]
[422597176,1779136245000,-386.35085354,0.00031527,2]
[422597179,1779136245000,-240.61,0.000317,7]
[422597181,1779136245000,-150.0,0.00031716,2]
[422597175,1779136245000,-1000.0,0.000315,7]
[422597186,1779136245000,-189.97120828,0.00032,120]
[422597199,1779136245000,-164.69197537,0.00032052,2]
[422597178,1779136245000,-28043.34544117,0.00031655,2]
[422597193,1779136245000,-219.57578969,0.00032052,7]
[422597190,1779136245000,-222.19526241,0.00032052,7]
[422597198,1779136245000,-168.50965327,0.00032052,2]
[422597192,1779136245000,-1101.60740761,0.00032052,7]
[422597191,1779136245000,-672.60053897,0.00032052,7]
[422597197,1779136245000,-407.91775931,0.00032052,7]
[422597196,1779136245000,-624.88571876,0.00032052,2]
[422597189,1779136245000,-535.73568834,0.00032052,2]
[422597188,1779136245000,-1568.0,0.00032025,3]
[422597167,1779136245000,-209.93422819,0.00031448,7]
[422597194,1779136245000,-158.25389996,0.00032052,7]
[422597187,1779136245000,-25000.0,0.00032011,10]
[422597265,1779136246000,-150.0,0.00033381,7]
[422597267,1779136246000,-163.0,0.00033416,11]
[422597264,1779136246000,-331.703333,0.00033318,17]
[422597266,1779136246000,-150.0,0.0003341,7]
[422597281,1779136246000,-150.0,0.00033656,7]
[422597270,1779136246000,-150.0,0.00033471,7]
[422597272,1779136246000,-324.04,0.000335,7]
[422597274,1779136246000,-1652.41111141,0.00033562,7]
[422597273,1779136246000,-150.0,0.00033526,7]
[422597276,1779136246000,-150.0,0.00033574,7]
[422597280,1779136246000,-1586.0,0.00033635,11]
[422597275,1779136246000,-937.32857814,0.00033562,2]
[422597268,1779136246000,-150.0,0.00033448,7]
[422597291,1779136246000,-150.0,0.00033779,7]
[422597277,1779136246000,-1000.0,0.00033581,5]
[422597279,1779136246000,-240.61,0.000336,30]
[422597278,1779136246000,-150.0,0.00033598,7]
[422597282,1779136246000,-383.09,0.0003366,2]
[422597284,1779136246000,-713.13,0.0003366,2]
[422597286,1779136246000,-2313.0,0.0003369,11]
[422597285,1779136246000,-150.0,0.0003367,7]
[422597293,1779136246000,-163.0,0.00033817,11]
[422597289,1779136246000,-1000.0,0.0003377,19]
[422597283,1779136246000,-500.0,0.0003366,2]
[422597292,1779136246000,-150.0,0.00033815,7]
[422597288,1779136246000,-150.0,0.00033742,7]
[422597263,1779136246000,-150.0,0.00033309,7]
[422597271,1779136246000,-5950.58,0.000335,14]
[422597262,1779136246000,-150.0,0.00033302,2]
[422597246,1779136246000,-229.0,0.00033135,30]
[422597258,1779136246000,-160.0,0.00033199,30]
[422597290,1779136246000,-150.0,0.00033779,7]
[422597233,1779136246000,-500.0,0.00032877,2]
[422597235,1779136246000,-500.0,0.00032877,2]
[422597241,1779136246000,-6576.9621667,0.00032987,2]
[422597245,1779136246000,-153.0,0.00033129,30]
[422597242,1779136246000,-164.99548644,0.00033,120]
[422597243,1779136246000,-189.97120828,0.00033,120]
[422597238,1779136246000,-1586.0,0.00032985,11]
[422597239,1779136246000,-98625.9156714,0.00032987,2]
[422597244,1779136246000,-500.0,0.00033123,2]
[422597234,1779136246000,-500.0,0.00032877,2]
[422597240,1779136246000,-4955.2712611,0.00032987,2]
[422597236,1779136246000,-415.84591649,0.00032877,2]
[422597269,1779136246000,-150.0,0.00033453,7]
[422597237,1779136246000,-16559.1287468,0.00032877,10]
[422597248,1779136246000,-502.0,0.00033159,8]
[422597255,1779136246000,-150.0,0.00033164,7]
[422597257,1779136246000,-150.0,0.00033164,7]
[422597251,1779136246000,-150.0,0.00033164,7]
[422597249,1779136246000,-150.0,0.00033164,7]
[422597253,1779136246000,-150.0,0.00033164,7]
[422597250,1779136246000,-150.0,0.00033164,7]
[422597252,1779136246000,-150.0,0.00033164,7]
[422597254,1779136246000,-150.0,0.00033164,7]
[422597256,1779136246000,-150.0,0.00033164,7]
[422597259,1779136246000,-175.0,0.00033199,30]
[422597260,1779136246000,-150.0,0.00033237,7]
[422597261,1779136246000,-331.703333,0.00033291,17]
[422597247,1779136246000,-157.0,0.00033135,30]
[422597287,1779136246000,-150.0,0.00033731,7]
[422597294,1779136246000,-502.0,0.00033829,9]
[422597297,1779136246000,-500.0,0.0003384,2]
[422597332,1779136246000,-247.41583553,0.0003423,6]
[422597325,1779136246000,-160.0,0.00034199,30]
[422597329,1779136246000,-255.94741606,0.0003423,6]
[422597330,1779136246000,-179.16319124,0.0003423,6]
[422597328,1779136246000,-255.94741606,0.0003423,6]
[422597334,1779136246000,-230.35267445,0.0003423,6]
[422597344,1779136246000,-163.0,0.00034376,11]
[422597340,1779136246000,-150.0,0.00034298,7]
[422597336,1779136246000,-153.56844964,0.0003423,6]
[422597338,1779136246000,-28043.34544117,0.00034247,2]
[422597335,1779136246000,-230.35267446,0.0003423,6]
[422597339,1779136246000,-150.0,0.00034248,7]
[422597337,1779136246000,-153.56844963,0.0003423,6]
[422597341,1779136246000,-5950.58,0.000343,14]
[422597343,1779136246000,-2313.0,0.0003433,11]
[422597342,1779136246000,-150.0,0.0003432,7]
[422597345,1779136246000,-2313.0,0.00034376,11]
[422597346,1779136246000,-150.0,0.00034393,7]
[422597347,1779136246000,-150.0,0.00034393,7]
[422597348,1779136246000,-150.0,0.00034393,7]
[422597358,1779136246000,-1586.0,0.0003449,11]
[422597356,1779136246000,-2074.0,0.00034485,11]
[422597355,1779136246000,-150.0,0.00034465,7]
[422597357,1779136246000,-2313.0,0.0003449,11]
[422597352,1779136246000,-150.0,0.00034393,7]
[422597350,1779136246000,-150.0,0.00034393,7]
[422597354,1779136246000,-2313.0,0.00034457,11]
[422597331,1779136246000,-216.65276497,0.0003423,6]
[422597327,1779136246000,-1000.0,0.00034204,6]
[422597333,1779136246000,-247.41583552,0.0003423,6]
[422597323,1779136246000,-233.5,0.00034182,7]
[422597298,1779136246000,-500.0,0.0003384,2]
[422597324,1779136246000,-150.0,0.0003419,2]
[422597296,1779136246000,-500.0,0.0003384,2]
[422597299,1779136246000,-500.0,0.0003384,2]
[422597305,1779136246000,-150.0,0.00033901,7]
[422597295,1779136246000,-500.0,0.0003384,2]
[422597300,1779136246000,-495.0,0.0003384,2]
[422597303,1779136246000,-1000.0,0.00033899,12]
[422597306,1779136246000,-1000.0,0.00033926,20]
[422597301,1779136246000,-2313.0,0.00033845,11]
[422597302,1779136246000,-150.0,0.00033887,7]
[422597310,1779136246000,-290.59,0.00034,2]
[422597307,1779136246000,-150.0,0.00033959,7]
[422597308,1779136246000,-150.0,0.00033983,7]
[422597304,1779136246000,-150.0,0.00033901,7]
[422597322,1779136246000,-150.0,0.00034176,7]
[422597326,1779136246000,-175.0,0.00034199,30]
[422597311,1779136246000,-290.59,0.00034,2]
[422597321,1779136246000,-2313.0,0.0003417,11]
[422597320,1779136246000,-150.0,0.00034147,7]
[422597319,1779136246000,-2313.0,0.00034137,11]
[422597312,1779136246000,-150.0,0.00034015,7]
[422597314,1779136246000,-150.0,0.00034086,7]
[422597315,1779136246000,-150.0,0.00034104,7]
[422597309,1779136246000,-256.73,0.00034,2]
[422597316,1779136246000,-153.0,0.00034129,30]
[422597313,1779136246000,-150.0,0.00034031,7]
[422597318,1779136246000,-157.0,0.00034135,30]
[422597317,1779136246000,-229.0,0.00034135,30]
[422597400,1779136247000,-330.0,0.00034835,2]
[422597409,1779136247000,-1927.81296331,0.00034921,7]
[422597408,1779136247000,-327.0,0.00034919,2]
[422597406,1779136247000,-330.0,0.00034896,2]
[422597407,1779136247000,-150.0,0.00034898,7]
[422597396,1779136247000,-150.0,0.00034802,7]
[422597392,1779136247000,-500.0,0.00034794,120]
[422597391,1779136247000,-500.0,0.00034794,120]
[422597395,1779136247000,-1576.266908,0.000348,18]
[422597393,1779136247000,-500.0,0.00034794,30]
[422597394,1779136247000,-1500.0,0.00034795,2]
[422597411,1779136247000,-267.54382716,0.00034936,2]
[422597390,1779136247000,-500.0,0.00034794,120]
[422597404,1779136247000,-473.0,0.0003488,2]
[422597417,1779136247000,-473.0,0.00034987,2]
[422597410,1779136247000,-1093.55000783,0.00034921,2]
[422597401,1779136247000,-473.0,0.00034838,2]
[422597402,1779136247000,-150.0,0.00034865,7]
[422597403,1779136247000,-473.0,0.00034873,2]
[422597405,1779136247000,-150.0,0.00034884,7]
[422597423,1779136247000,-331.703333,0.00035,25]
[422597413,1779136247000,-330.0,0.00034954,2]
[422597424,1779136247000,-200.0,0.00035,10]
[422597415,1779136247000,-400.0,0.0003497,2]
[422597414,1779136247000,-150.0,0.00034967,2]
[422597416,1779136247000,-150.0,0.00034971,7]
[422597412,1779136247000,-330.0,0.00034944,2]
[422597388,1779136247000,-500.0,0.00034794,7]
[422597399,1779136247000,-330.0,0.00034831,2]
[422597386,1779136247000,-500.0,0.00034794,2]
[422597360,1779136247000,-240.61,0.000345,30]
[422597397,1779136247000,-2313.0,0.0003481,11]
[422597359,1779136247000,-502.0,0.00034498,10]
[422597419,1779136247000,-275.0,0.00034992,2]
[422597362,1779136247000,-150.0,0.00034537,7]
[422597372,1779136247000,-1000.0,0.000347,11]
[422597370,1779136247000,-150.0,0.00034682,7]
[422597373,1779136247000,-330.0,0.00034724,2]
[422597361,1779136247000,-174.87,0.00034521,120]
[422597371,1779136247000,-150.0,0.000347,7]
[422597363,1779136247000,-150.0,0.00034582,7]
[422597369,1779136247000,-797.53523944,0.0003465,2]
[422597367,1779136247000,-150.0,0.00034638,7]
[422597364,1779136247000,-2313.0,0.00034595,11]
[422597366,1779136247000,-150.0,0.00034609,7]
[422597368,1779136247000,-150.0,0.00034638,7]
[422597365,1779136247000,-324.04,0.000346,7]
[422597374,1779136247000,-339.0,0.00034735,2]
[422597385,1779136247000,-500.0,0.00034794,120]
[422597376,1779136247000,-381.0,0.00034749,2]
[422597375,1779136247000,-473.0,0.00034739,2]
[422597381,1779136247000,-500.0,0.00034794,30]
[422597377,1779136247000,-150.0,0.00034754,7]
[422597380,1779136247000,-500.0,0.00034794,120]
[422597378,1779136247000,-327.0,0.00034756,2]
[422597382,1779136247000,-500.0,0.00034794,120]
[422597379,1779136247000,-279.0,0.00034787,2]
[422597383,1779136247000,-500.0,0.00034794,120]
[422597384,1779136247000,-500.0,0.00034794,120]
[422597387,1779136247000,-500.0,0.00034794,120]
[422597389,1779136247000,-500.0,0.00034794,120]
[422597398,1779136247000,-150.0,0.00034826,7]
[422597421,1779136247000,-1000.0,0.00034999,17]
[422597483,1779136247000,-150.0,0.00035621,7]
[422597418,1779136247000,-327.0,0.0003499,2]
[422597460,1779136247000,-361.858181,0.000353,26]
[422597453,1779136247000,-160.0,0.00035199,30]
[422597456,1779136247000,-150.0,0.00035212,7]
[422597457,1779136247000,-150.0,0.0003526,7]
[422597455,1779136247000,-1500.0,0.000352,7]
[422597459,1779136247000,-400.0,0.0003527,2]
[422597454,1779136247000,-175.0,0.00035199,30]
[422597465,1779136247000,-162.9743891,0.00035342,30]
[422597476,1779136247000,-1000.0,0.00035616,10]
[422597475,1779136247000,-162.9743891,0.00035562,30]
[422597477,1779136247000,-1000.0,0.00035616,10]
[422597464,1779136247000,-150.0,0.00035332,7]
[422597420,1779136247000,-330.0,0.00034998,2]
[422597467,1779136247000,-150.0,0.00035375,7]
[422597468,1779136247000,-331.703333,0.00035382,27]
[422597469,1779136247000,-150.0,0.00035404,7]
[422597474,1779136247000,-150.0,0.00035549,7]
[422597470,1779136247000,-150.0,0.00035432,7]
[422597473,1779136247000,-420177.94770895,0.0003553,2]
[422597471,1779136247000,-331.703333,0.00035435,27]
[422597472,1779136247000,-150.0,0.00035476,7]
[422597478,1779136247000,-940.0,0.00035616,10]
[422597480,1779136247000,-150.0,0.00035621,7]
[422597479,1779136247000,-150.0,0.0003562,30]
[422597482,1779136247000,-150.0,0.00035621,7]
[422597484,1779136247000,-150.0,0.00035621,7]
[422597486,1779136247000,-150.0,0.00035693,7]
[422597481,1779136247000,-150.0,0.00035621,7]
[422597485,1779136247000,-294.169322,0.00035624,30]
[422597458,1779136247000,-300.0,0.0003527,2]
[422597463,1779136247000,-151.27653631,0.00035315,120]
[422597466,1779136247000,-150.0,0.00035375,7]
[422597452,1779136247000,-150.0,0.00035187,7]
[422597462,1779136247000,-150.0,0.00035314,7]
[422597422,1779136247000,-1000.0,0.00034999,25]
[422597425,1779136247000,-1110.78697574,0.00035,30]
[422597427,1779136247000,-1110.78697574,0.00035,30]
[422597428,1779136247000,-1110.78697574,0.00035,30]
[422597429,1779136247000,-1110.78697574,0.00035,30]
[422597431,1779136247000,-1110.78697574,0.00035,60]
[422597430,1779136247000,-1110.78697574,0.00035,30]
[422597433,1779136247000,-1110.78697574,0.00035,60]
[422597432,1779136247000,-1110.78697574,0.00035,60]
[422597434,1779136247000,-150.0,0.00035007,7]
[422597437,1779136247000,-150.0,0.00035043,7]
[422597435,1779136247000,-150.0,0.00035007,7]
[422597436,1779136247000,-150.0,0.00035007,7]
[422597426,1779136247000,-1110.78697574,0.00035,30]
[422597439,1779136247000,-6659.35773695,0.00035081,7]
[422597449,1779136247000,-163.0,0.00035139,11]
[422597461,1779136247000,-1500.0,0.000353,18]
[422597451,1779136247000,-502.0,0.00035167,10]
[422597447,1779136247000,-2313.0,0.0003513,11]
[422597448,1779136247000,-229.0,0.00035135,30]
[422597444,1779136247000,-153.0,0.00035129,30]
[422597446,1779136247000,-150.0,0.0003513,7]
[422597450,1779136247000,-150.0,0.00035149,7]
[422597445,1779136247000,-386.35085354,0.0003513,2]
[422597442,1779136247000,-150.0,0.00035115,7]
[422597440,1779136247000,-259.161749,0.000351,10]
[422597441,1779136247000,-5950.58,0.000351,14]
[422597438,1779136247000,-27685.94962774,0.00035081,7]
[422597443,1779136247000,-162.9743891,0.00035123,30]
[422597529,1779136248000,-376.72374301,0.00036257,2]
[422597540,1779136248000,-300.0,0.00036257,2]
[422597531,1779136248000,-545.66294952,0.00036257,2]
[422597530,1779136248000,-1566.54217295,0.00036257,2]
[422597525,1779136248000,-150.0,0.00036235,7]
[422597524,1779136248000,-162.9743891,0.00036219,30]
[422597526,1779136248000,-150.0,0.00036235,7]
[422597527,1779136248000,-449.16038289,0.00036244,2]
[422597523,1779136248000,-235.4,0.000362,120]
[422597520,1779136248000,-172.18200703,0.00036199,30]
[422597521,1779136248000,-175.0,0.00036199,30]
[422597519,1779136248000,-150.0,0.00036199,7]
[422597522,1779136248000,-400.91,0.000362,120]
[422597532,1779136248000,-311.08512203,0.00036257,2]
[422597517,1779136248000,-233.5,0.00036153,30]
[422597539,1779136248000,-310.01860705,0.00036257,2]
[422597537,1779136248000,-300.0,0.00036257,2]
[422597538,1779136248000,-484.37160241,0.00036257,2]
[422597534,1779136248000,-464.11796449,0.00036257,2]
[422597536,1779136248000,-577.57827662,0.00036257,2]
[422597535,1779136248000,-443.14247031,0.00036257,2]
[422597541,1779136248000,-1095.40392062,0.00036257,2]
[422597544,1779136248000,-477.48509954,0.00036257,2]
[422597542,1779136248000,-300.0,0.00036257,2]
[422597552,1779136248000,-311.08512203,0.00036257,2]
[422597548,1779136248000,-300.73949774,0.00036257,2]
[422597545,1779136248000,-300.00000001,0.00036257,2]
[422597551,1779136248000,-864.96954818,0.00036257,2]
[422597533,1779136248000,-300.0,0.00036257,2]
[422597518,1779136248000,-4474.0,0.00036164,2]
[422597546,1779136248000,-300.75053335,0.00036257,2]
[422597512,1779136248000,-500.0,0.0003613,2]
[422597489,1779136248000,-1200.0,0.00035758,60]
[422597490,1779136248000,-434.84399284,0.00035758,60]
[422597488,1779136248000,-500.0,0.00035758,60]
[422597487,1779136248000,-150.0,0.00035715,7]
[422597493,1779136248000,-1000.0,0.00035814,29]
[422597494,1779136248000,-502.0,0.00035836,11]
[422597491,1779136248000,-150.0,0.00035766,7]
[422597495,1779136248000,-150.0,0.00035838,7]
[422597503,1779136248000,-150.0,0.00035999,7]
[422597492,1779136248000,-162.9743891,0.00035781,30]
[422597502,1779136248000,-150.0,0.00035982,7]
[422597496,1779136248000,-150.0,0.00035867,7]
[422597498,1779136248000,-162.9743891,0.0003589,30]
[422597528,1779136248000,-1147.88995825,0.00036257,2]
[422597501,1779136248000,-150.0,0.00035928,7]
[422597497,1779136248000,-162.97438914,0.0003589,30]
[422597500,1779136248000,-150.0,0.0003591,7]
[422597504,1779136248000,-162.9743891,0.00036,30]
[422597507,1779136248000,-150.0,0.00036112,7]
[422597506,1779136248000,-150.0,0.00036055,7]
[422597508,1779136248000,-150.0,0.00036112,7]
[422597509,1779136248000,-150.0,0.00036127,7]
[422597505,1779136248000,-150.0,0.0003603,7]
[422597515,1779136248000,-1998.25,0.00036131,2]
[422597513,1779136248000,-500.0,0.0003613,2]
[422597511,1779136248000,-574.65,0.0003613,2]
[422597516,1779136248000,-229.0,0.00036135,30]
[422597514,1779136248000,-819.71,0.0003613,2]
[422597499,1779136248000,-150.0,0.00035899,2]
[422597550,1779136248000,-568.56191095,0.00036257,2]
[422597510,1779136248000,-153.0,0.00036129,30]
[422597543,1779136248000,-1067.5484804,0.00036257,2]
[422597587,1779136248000,-500.0,0.00036402,7]
[422597582,1779136248000,-500.0,0.00036402,7]
[422597612,1779136248000,-500.0,0.00036402,7]
[422597583,1779136248000,-500.0,0.00036402,7]
[422597584,1779136248000,-500.0,0.00036402,7]
[422597588,1779136248000,-500.0,0.00036402,7]
[422597590,1779136248000,-500.0,0.00036402,7]
[422597586,1779136248000,-500.0,0.00036402,7]
[422597589,1779136248000,-500.0,0.00036402,7]
[422597605,1779136248000,-500.0,0.00036402,7]
[422597594,1779136248000,-500.0,0.00036402,7]
[422597604,1779136248000,-500.0,0.00036402,7]
[422597595,1779136248000,-500.0,0.00036402,7]
[422597581,1779136248000,-1000.0,0.000364,45]
[422597597,1779136248000,-500.0,0.00036402,7]
[422597596,1779136248000,-500.0,0.00036402,7]
[422597598,1779136248000,-500.0,0.00036402,7]
[422597599,1779136248000,-500.0,0.00036402,7]
[422597600,1779136248000,-500.0,0.00036402,7]
[422597602,1779136248000,-500.0,0.00036402,7]
[422597601,1779136248000,-500.0,0.00036402,7]